[Event "Titled Tuesday Blitz June 28 Early 2022"]
[White "Ismagilov, Damir"]
[Black "Daneshvar, Bardiya"]
[WhiteFideId "34199982"]
[BlackFideId "12576468"]
[WhiteElo "2138"]
[BlackElo "2303"]
[Result "0-1"]
[Round "08"]
[TimeControl "180+1"]
[Date "2022.06.28"]
[WhiteClock "0:00:01"]
[BlackClock "0:00:05"]

1. d4 {[%clk 0:03:00]}  Nf6 {[%clk 0:02:59]} 2. c4 {[%clk 0:03:00]}  g6 {[%clk 0:02:57]} 3. Nc3 {[%clk 0:03:00]}  d5 {[%clk 0:02:58]} 4. cxd5 {[%clk 0:03:01]}  Nxd5 {[%clk 0:02:58]} 5. e4 {[%clk 0:03:02]}  Nxc3 {[%clk 0:02:58]} 6. bxc3 {[%clk 0:03:02]}  Bg7 {[%clk 0:02:59]} 7. Qa4+ {[%clk 0:03:03]}  Nd7 {[%clk 0:02:58]} 8. Nf3 {[%clk 0:03:02]}  O-O {[%clk 0:02:58]} 9. Be2 {[%clk 0:03:03]}  Nf6 {[%clk 0:02:53]} 10. Qc2 {[%clk 0:02:55]}  c5 {[%clk 0:02:51]} 11. O-O {[%clk 0:02:54]}  cxd4 {[%clk 0:02:51]} 12. cxd4 {[%clk 0:02:55]}  b6 {[%clk 0:02:51]} 13. Bb2 {[%clk 0:02:38]}  Bb7 {[%clk 0:02:44]} 14. Bd3 {[%clk 0:02:19]}  Rc8 {[%clk 0:02:42]} 15. Qe2 {[%clk 0:02:19]}  e6 {[%clk 0:02:41]} 16. a4 {[%clk 0:02:14]}  Nh5 {[%clk 0:02:31]} 17. Qe3 {[%clk 0:02:13]}  f5 {[%clk 0:02:31]} 18. Rfc1 {[%clk 0:01:33]}  Rxc1+ {[%clk 0:02:21]} 19. Rxc1 {[%clk 0:01:32]}  fxe4 {[%clk 0:02:21]} 20. Bxe4 {[%clk 0:01:32]}  Bxe4 {[%clk 0:02:21]} 21. Qxe4 {[%clk 0:01:33]}  Nf4 {[%clk 0:02:19]} 22. g3 {[%clk 0:01:26]}  Qd5 {[%clk 0:02:15]} 23. Qxd5 {[%clk 0:01:16]}  Nxd5 {[%clk 0:02:16]} 24. Kg2 {[%clk 0:01:16]}  h6 {[%clk 0:02:14]} 25. Rc6 {[%clk 0:01:15]}  Kf7 {[%clk 0:02:13]} 26. Ne5+ {[%clk 0:01:12]}  Bxe5 {[%clk 0:02:12]} 27. dxe5 {[%clk 0:01:13]}  Rb8 {[%clk 0:02:00]} 28. h4 {[%clk 0:01:09]}  a5 {[%clk 0:01:54]} 29. Rd6 {[%clk 0:01:01]}  b5 {[%clk 0:01:52]} 30. Rd7+ {[%clk 0:00:50]}  Kg8 {[%clk 0:01:50]} 31. axb5 {[%clk 0:00:48]}  Rxb5 {[%clk 0:01:51]} 32. Bc1 {[%clk 0:00:48]}  h5 {[%clk 0:01:44]} 33. Ra7 {[%clk 0:00:43]}  Nb4 {[%clk 0:01:35]} 34. Bh6 {[%clk 0:00:38]}  Rxe5 {[%clk 0:01:31]} 35. Rg7+ {[%clk 0:00:38]}  Kh8 {[%clk 0:01:30]} 36. Re7 {[%clk 0:00:28]}  Nc6 {[%clk 0:00:59]} 37. Rc7 {[%clk 0:00:26]}  Rc5 {[%clk 0:00:57]} 38. Rc8+ {[%clk 0:00:22]}  Kh7 {[%clk 0:00:57]} 39. Bg5 {[%clk 0:00:20]}  Kg7 {[%clk 0:00:50]} 40. Rc7+ {[%clk 0:00:20]}  Kg8 {[%clk 0:00:45]} 41. Rc8+ {[%clk 0:00:20]}  Kf7 {[%clk 0:00:44]} 42. Rc7+ {[%clk 0:00:20]}  Ke8 {[%clk 0:00:44]} 43. Rc8+ {[%clk 0:00:14]}  Kd7 {[%clk 0:00:43]} 44. Rg8 {[%clk 0:00:15]}  Ne5 {[%clk 0:00:42]} 45. Rg7+ {[%clk 0:00:12]}  Kc6 {[%clk 0:00:39]} 46. Bf4 {[%clk 0:00:12]}  a4 {[%clk 0:00:36]} 47. Ra7 {[%clk 0:00:07]}  Ng4 {[%clk 0:00:29]} 48. Rxa4 {[%clk 0:00:06]}  Rc2 {[%clk 0:00:29]} 49. Ra6+ {[%clk 0:00:04]}  Kd7 {[%clk 0:00:23]} 50. Ra7+ {[%clk 0:00:04]}  Ke8 {[%clk 0:00:22]} 51. Ra8+ {[%clk 0:00:04]}  Kf7 {[%clk 0:00:23]} 52. Ra7+ {[%clk 0:00:05]}  Ke8 {[%clk 0:00:18]} 53. Ra8+ {[%clk 0:00:04]}  Kd7 {[%clk 0:00:18]} 54. Ra7+ {[%clk 0:00:05]}  Kc8 {[%clk 0:00:18]} 55. Ra8+ {[%clk 0:00:05]}  Kb7 {[%clk 0:00:19]} 56. Rb8+ {[%clk 0:00:05]}  Ka7 {[%clk 0:00:18]} 57. Re8 {[%clk 0:00:05]}  Rxf2+ {[%clk 0:00:17]} 58. Kg1 {[%clk 0:00:06]}  Re2 {[%clk 0:00:16]} 59. Rg8 {[%clk 0:00:06]}  e5 {[%clk 0:00:15]} 60. Bg5 {[%clk 0:00:07]}  e4 {[%clk 0:00:14]} 61. Rg7+ {[%clk 0:00:07]}  Kb6 {[%clk 0:00:13]} 62. Rxg6+ {[%clk 0:00:08]}  Kc5 {[%clk 0:00:14]} 63. Re6 {[%clk 0:00:07]}  Kd5 {[%clk 0:00:14]} 64. Re8 {[%clk 0:00:06]}  Ne5 {[%clk 0:00:14]} 65. Rd8+ {[%clk 0:00:06]}  Ke6 {[%clk 0:00:13]} 66. Re8+ {[%clk 0:00:06]}  Kf5 {[%clk 0:00:13]} 67. Rf8+ {[%clk 0:00:07]}  Kg4 {[%clk 0:00:13]} 68. Bf4 {[%clk 0:00:04]}  Nf3+ {[%clk 0:00:13]} 69. Kf1 {[%clk 0:00:05]}  Ra2 {[%clk 0:00:13]} 70. Rg8+ {[%clk 0:00:04]}  Kh3 {[%clk 0:00:14]} 71. Re8 {[%clk 0:00:04]}  Nh2+ {[%clk 0:00:11]} 72. Ke1 {[%clk 0:00:03]}  Ra4 {[%clk 0:00:09]} 73. Ke2 {[%clk 0:00:03]}  Kg2 {[%clk 0:00:09]} 74. Ke3 {[%clk 0:00:03]}  Nf1+ {[%clk 0:00:08]} 75. Ke2 {[%clk 0:00:02]}  Ra2+ {[%clk 0:00:06]} 76. Ke1 {[%clk 0:00:03]}  Ra4 {[%clk 0:00:05]} 77. Ke2 {[%clk 0:00:03]}  Nxg3+ {[%clk 0:00:04]} 78. Bxg3 {[%clk 0:00:02]}  Kxg3 {[%clk 0:00:05]} 79. Ke3 {[%clk 0:00:03]}  Kxh4 {[%clk 0:00:05]} 80. Rg8 {[%clk 0:00:03]}  Kh3 {[%clk 0:00:05]} 81. Rg5 {[%clk 0:00:02]}  h4 {[%clk 0:00:05]} 82. Rg8 {[%clk 0:00:03]}  Kh2 {[%clk 0:00:04]} 83. Rg7 {[%clk 0:00:03]}  h3 {[%clk 0:00:05]} 84. Rg8 {[%clk 0:00:04]}  Kh1 {[%clk 0:00:05]} 85. Rg7 {[%clk 0:00:04]}  h2 {[%clk 0:00:05]} 86. Rg8 {[%clk 0:00:04]}  Rb4 {[%clk 0:00:04]} 87. Rg7 {[%clk 0:00:03]}  Ra4 {[%clk 0:00:04]} 88. Rg8 {[%clk 0:00:03]}  Ra1 {[%clk 0:00:05]} 89. Kxe4 {[%clk 0:00:03]}  Rg1 {[%clk 0:00:05]} 90. Rh8 {[%clk 0:00:02]}  Rg7 {[%clk 0:00:04]} 91. Kf3 {[%clk 0:00:01]}  Kg1 {[%clk 0:00:05]} 92. Ra8 {[%clk 0:00:01]}  h1=Q+ {[%clk 0:00:05]} 0-1


[Site "https://www.chess.com"]

[Event "Titled Tuesday Blitz June 28 Early 2022"]
[White "Ismayil, Malak"]
[Black "Gardezi, Arsal"]
[WhiteFideId "13412604"]
[BlackFideId "30949521"]
[WhiteElo "1879"]
[BlackElo "1781"]
[Result "1-0"]
[Round "08"]
[TimeControl "180+1"]
[Date "2022.06.28"]
[WhiteClock "0:00:06"]
[BlackClock "0:00:01"]

1. e4 {[%clk 0:03:00]}  e5 {[%clk 0:02:59]} 2. Nf3 {[%clk 0:03:00]}  Nc6 {[%clk 0:02:59]} 3. Bc4 {[%clk 0:03:01]}  Nf6 {[%clk 0:02:58]} 4. d3 {[%clk 0:02:58]}  Bc5 {[%clk 0:02:53]} 5. Nc3 {[%clk 0:02:58]}  O-O {[%clk 0:02:49]} 6. O-O {[%clk 0:02:57]}  h6 {[%clk 0:02:49]} 7. h3 {[%clk 0:02:57]}  d6 {[%clk 0:02:49]} 8. Be3 {[%clk 0:02:57]}  Bb6 {[%clk 0:02:48]} 9. Qd2 {[%clk 0:02:55]}  Bxe3 {[%clk 0:02:42]} 10. fxe3 {[%clk 0:02:54]}  Be6 {[%clk 0:02:42]} 11. Bd5 {[%clk 0:02:52]}  Ne7 {[%clk 0:02:30]} 12. Bb3 {[%clk 0:02:48]}  Ng6 {[%clk 0:02:27]} 13. d4 {[%clk 0:02:43]}  exd4 {[%clk 0:02:03]} 14. exd4 {[%clk 0:02:44]}  d5 {[%clk 0:02:03]} 15. e5 {[%clk 0:02:40]}  Ne4 {[%clk 0:01:56]} 16. Qe3 {[%clk 0:02:39]}  Ng3 {[%clk 0:01:53]} 17. Rf2 {[%clk 0:02:32]}  Nf5 {[%clk 0:01:53]} 18. Qd3 {[%clk 0:02:31]}  Nf4 {[%clk 0:01:52]} 19. Qd2 {[%clk 0:02:27]}  Ng6 {[%clk 0:01:44]} 20. Raf1 {[%clk 0:02:21]}  Qd7 {[%clk 0:01:40]} 21. Nh2 {[%clk 0:02:09]}  c5 {[%clk 0:01:31]} 22. dxc5 {[%clk 0:02:07]}  Nxe5 {[%clk 0:01:27]} 23. Nxd5 {[%clk 0:02:00]}  Rad8 {[%clk 0:01:15]} 24. c4 {[%clk 0:01:54]}  Ng3 {[%clk 0:00:56]} 25. Re1 {[%clk 0:01:51]}  Nxc4 {[%clk 0:00:54]} 26. Bxc4 {[%clk 0:01:43]}  Bxd5 {[%clk 0:00:54]} 27. Rd1 {[%clk 0:01:25]}  Bc6 {[%clk 0:00:22]} 28. Qxd7 {[%clk 0:01:22]}  Rxd7 {[%clk 0:00:18]} 29. Rxd7 {[%clk 0:01:22]}  Bxd7 {[%clk 0:00:19]} 30. Nf3 {[%clk 0:01:19]}  Re8 {[%clk 0:00:17]} 31. Kh2 {[%clk 0:01:11]}  Ne4 {[%clk 0:00:17]} 32. Rf1 {[%clk 0:01:06]}  Nf6 {[%clk 0:00:17]} 33. Rd1 {[%clk 0:00:55]}  Bc6 {[%clk 0:00:17]} 34. Nd4 {[%clk 0:00:54]}  Rd8 {[%clk 0:00:17]} 35. Bb3 {[%clk 0:00:51]}  Be4 {[%clk 0:00:17]} 36. Nb5 {[%clk 0:00:48]}  Rxd1 {[%clk 0:00:16]} 37. Bxd1 {[%clk 0:00:49]}  Nd7 {[%clk 0:00:16]} 38. b4 {[%clk 0:00:49]}  Nb8 {[%clk 0:00:15]} 39. Bb3 {[%clk 0:00:46]}  a6 {[%clk 0:00:15]} 40. Nd6 {[%clk 0:00:45]}  Bg6 {[%clk 0:00:16]} 41. Nxb7 {[%clk 0:00:43]}  Nc6 {[%clk 0:00:16]} 42. a3 {[%clk 0:00:42]}  Nd4 {[%clk 0:00:16]} 43. Bc4 {[%clk 0:00:40]}  Nc2 {[%clk 0:00:12]} 44. Bxa6 {[%clk 0:00:38]}  Nxa3 {[%clk 0:00:12]} 45. c6 {[%clk 0:00:36]}  Bf5 {[%clk 0:00:11]} 46. Nd6 {[%clk 0:00:36]}  Be6 {[%clk 0:00:10]} 47. c7 {[%clk 0:00:36]}  Nc2 {[%clk 0:00:09]} 48. c8=Q+ {[%clk 0:00:36]}  Bxc8 {[%clk 0:00:10]} 49. Bxc8 {[%clk 0:00:36]}  Nxb4 {[%clk 0:00:11]} 50. Bg4 {[%clk 0:00:33]}  Kf8 {[%clk 0:00:11]} 51. Be2 {[%clk 0:00:31]}  Nd5 {[%clk 0:00:11]} 52. Bc4 {[%clk 0:00:29]}  Ne3 {[%clk 0:00:10]} 53. Bb3 {[%clk 0:00:25]}  f6 {[%clk 0:00:08]} 54. Kg3 {[%clk 0:00:24]}  Ke7 {[%clk 0:00:07]} 55. Ne4 {[%clk 0:00:21]}  Nf5+ {[%clk 0:00:06]} 56. Kf4 {[%clk 0:00:21]}  Nd4 {[%clk 0:00:07]} 57. Bc4 {[%clk 0:00:20]}  Nc6 {[%clk 0:00:05]} 58. Ng3 {[%clk 0:00:18]}  Ne5 {[%clk 0:00:05]} 59. Nf5+ {[%clk 0:00:18]}  Kf8 {[%clk 0:00:06]} 60. Bb5 {[%clk 0:00:16]}  Ng6+ {[%clk 0:00:06]} 61. Ke3 {[%clk 0:00:16]}  Ne5 {[%clk 0:00:06]} 62. Nd6 {[%clk 0:00:16]}  Ke7 {[%clk 0:00:06]} 63. Nf5+ {[%clk 0:00:16]}  Kf8 {[%clk 0:00:07]} 64. Kd4 {[%clk 0:00:14]}  Ng6 {[%clk 0:00:05]} 65. Ke4 {[%clk 0:00:13]}  Ne5 {[%clk 0:00:05]} 66. g3 {[%clk 0:00:13]}  Nf7 {[%clk 0:00:05]} 67. Bc6 {[%clk 0:00:12]}  Ne5 {[%clk 0:00:05]} 68. Bd5 {[%clk 0:00:11]}  Nd7 {[%clk 0:00:05]} 69. Kf4 {[%clk 0:00:10]}  Nb6 {[%clk 0:00:04]} 70. Be6 {[%clk 0:00:09]}  Na4 {[%clk 0:00:03]} 71. Ne3 {[%clk 0:00:07]}  Nc5 {[%clk 0:00:03]} 72. Bc4 {[%clk 0:00:07]}  Nd7 {[%clk 0:00:02]} 73. Nd5 {[%clk 0:00:07]}  Ne5 {[%clk 0:00:03]} 74. Bb3 {[%clk 0:00:07]}  Nd3+ {[%clk 0:00:03]} 75. Ke3 {[%clk 0:00:07]}  Nc5 {[%clk 0:00:03]} 76. Bc4 {[%clk 0:00:07]}  Nd7 {[%clk 0:00:03]} 77. Nc3 {[%clk 0:00:05]}  Ne5 {[%clk 0:00:04]} 78. Bd5 {[%clk 0:00:06]}  Ng6 {[%clk 0:00:03]} 79. h4 {[%clk 0:00:05]}  Ne7 {[%clk 0:00:03]} 80. Be6 {[%clk 0:00:05]}  Nc6 {[%clk 0:00:02]} 81. Nd5 {[%clk 0:00:05]}  Ne5 {[%clk 0:00:02]} 82. Nf4 {[%clk 0:00:06]}  Ke7 {[%clk 0:00:02]} 83. Bb3 {[%clk 0:00:05]}  Kf8 {[%clk 0:00:02]} 84. Ke4 {[%clk 0:00:05]}  Ke7 {[%clk 0:00:01]} 85. Kf5 {[%clk 0:00:06]} 1-0


[Site "https://www.chess.com"]

[Event "Titled Tuesday Blitz June 28 Early 2022"]
[White "Ivanov, Mike"]
[Black "Bommini, Mounika Akshaya"]
[WhiteFideId "2613158"]
[BlackFideId "25019872"]
[WhiteElo "2182"]
[BlackElo "1680"]
[Result "0-1"]
[Round "08"]
[TimeControl "180+1"]
[Date "2022.06.28"]
[WhiteClock "0:00:03"]
[BlackClock "0:00:09"]

1. e4 {[%clk 0:03:00]}  Nc6 {[%clk 0:02:52]} 2. Nf3 {[%clk 0:03:00]}  d6 {[%clk 0:02:52]} 3. d4 {[%clk 0:02:58]}  Nf6 {[%clk 0:02:52]} 4. Nc3 {[%clk 0:02:58]}  Bg4 {[%clk 0:02:53]} 5. d5 {[%clk 0:02:54]}  Nb8 {[%clk 0:02:43]} 6. Be2 {[%clk 0:02:50]}  g6 {[%clk 0:02:39]} 7. h3 {[%clk 0:02:49]}  Bc8 {[%clk 0:02:38]} 8. Be3 {[%clk 0:02:42]}  Bg7 {[%clk 0:02:38]} 9. Qd2 {[%clk 0:02:42]}  O-O {[%clk 0:02:38]} 10. Bh6 {[%clk 0:02:40]}  e5 {[%clk 0:02:32]} 11. h4 {[%clk 0:02:12]}  c5 {[%clk 0:02:15]} 12. h5 {[%clk 0:02:05]}  Nxh5 {[%clk 0:02:11]} 13. Bxg7 {[%clk 0:02:05]}  Kxg7 {[%clk 0:02:08]} 14. Ng5 {[%clk 0:01:22]}  h6 {[%clk 0:01:43]} 15. Nh3 {[%clk 0:00:53]}  Nf6 {[%clk 0:01:40]} 16. O-O-O {[%clk 0:00:45]}  Rh8 {[%clk 0:01:39]} 17. f4 {[%clk 0:00:43]}  Bg4 {[%clk 0:01:27]} 18. Nf2 {[%clk 0:00:24]}  Bxe2 {[%clk 0:01:26]} 19. Nxe2 {[%clk 0:00:24]}  Nbd7 {[%clk 0:01:21]} 20. g3 {[%clk 0:00:22]}  b5 {[%clk 0:01:20]} 21. Rh2 {[%clk 0:00:21]}  b4 {[%clk 0:01:17]} 22. Rdh1 {[%clk 0:00:21]}  h5 {[%clk 0:01:17]} 23. g4 {[%clk 0:00:17]}  Qa5 {[%clk 0:01:14]} 24. Kb1 {[%clk 0:00:10]}  hxg4 {[%clk 0:01:14]} 25. Rxh8 {[%clk 0:00:10]}  Rxh8 {[%clk 0:01:14]} 26. Rxh8 {[%clk 0:00:10]}  Kxh8 {[%clk 0:01:14]} 27. Ng3 {[%clk 0:00:07]}  Qd8 {[%clk 0:00:42]} 28. f5 {[%clk 0:00:07]}  Kg7 {[%clk 0:00:40]} 29. Qg5 {[%clk 0:00:07]}  Qh8 {[%clk 0:00:40]} 30. Nxg4 {[%clk 0:00:04]}  Nxg4 {[%clk 0:00:39]} 31. Qxg4 {[%clk 0:00:05]}  Nf6 {[%clk 0:00:39]} 32. Qf3 {[%clk 0:00:02]}  Qh2 {[%clk 0:00:36]} 33. a3 {[%clk 0:00:02]}  g5 {[%clk 0:00:31]} 34. axb4 {[%clk 0:00:02]}  cxb4 {[%clk 0:00:31]} 35. Qe3 {[%clk 0:00:03]}  Qh4 {[%clk 0:00:26]} 36. b3 {[%clk 0:00:03]}  Qf4 {[%clk 0:00:25]} 37. Qe1 {[%clk 0:00:02]}  Qh4 {[%clk 0:00:20]} 38. Qg1 {[%clk 0:00:02]}  Ng4 {[%clk 0:00:18]} 39. Qe1 {[%clk 0:00:01]}  Nh2 {[%clk 0:00:14]} 40. Qg1 {[%clk 0:00:02]}  Nf3 {[%clk 0:00:13]} 41. Qf2 {[%clk 0:00:02]}  Nd4 {[%clk 0:00:13]} 42. Kb2 {[%clk 0:00:02]}  Qf4 {[%clk 0:00:13]} 43. Qg1 {[%clk 0:00:02]}  Qd2 {[%clk 0:00:10]} 44. Nh5+ {[%clk 0:00:02]}  Kh6 {[%clk 0:00:09]} 45. Ng3 {[%clk 0:00:03]}  Qxc2+ {[%clk 0:00:09]} 46. Ka1 {[%clk 0:00:03]}  Nxb3# {[%clk 0:00:09]} 0-1


[Site "https://www.chess.com"]

[Event "Titled Tuesday Blitz June 28 Early 2022"]
[White "Janaszak, Dawid"]
[Black "OKEKE, Isaac Chukwudalu"]
[WhiteFideId "1119206"]
[BlackFideId "8508526"]
[WhiteElo "2199"]
[BlackElo "2102"]
[Result "1-0"]
[Round "08"]
[TimeControl "180+1"]
[Date "2022.06.28"]
[WhiteClock "0:00:29"]
[BlackClock "0:00:05"]

1. d4 {[%clk 0:03:00]}  Nf6 {[%clk 0:02:59]} 2. Bf4 {[%clk 0:02:58]}  c5 {[%clk 0:02:57]} 3. d5 {[%clk 0:02:58]}  Qb6 {[%clk 0:02:48]} 4. Nd2 {[%clk 0:02:57]}  Nxd5 {[%clk 0:02:38]} 5. Bg3 {[%clk 0:02:57]}  Nc6 {[%clk 0:02:33]} 6. e3 {[%clk 0:02:56]}  Qxb2 {[%clk 0:02:27]} 7. Rb1 {[%clk 0:02:56]}  Qa3 {[%clk 0:02:13]} 8. Rb3 {[%clk 0:02:44]}  Qa5 {[%clk 0:02:12]} 9. Nf3 {[%clk 0:02:38]}  Nc3 {[%clk 0:01:58]} 10. Qa1 {[%clk 0:02:37]}  Nxa2 {[%clk 0:01:48]} 11. c3 {[%clk 0:02:08]}  d5 {[%clk 0:01:13]} 12. Bb5 {[%clk 0:01:57]}  Bd7 {[%clk 0:00:49]} 13. O-O {[%clk 0:01:38]}  c4 {[%clk 0:00:37]} 14. Bxc6 {[%clk 0:01:37]}  Bxc6 {[%clk 0:00:38]} 15. Rb2 {[%clk 0:01:35]}  Qxc3 {[%clk 0:00:34]} 16. Be5 {[%clk 0:01:27]}  Qd3 {[%clk 0:00:31]} 17. Rxa2 {[%clk 0:01:26]}  f6 {[%clk 0:00:29]} 18. Bd4 {[%clk 0:01:24]}  a5 {[%clk 0:00:27]} 19. Rxa5 {[%clk 0:01:22]}  Rxa5 {[%clk 0:00:23]} 20. Qxa5 {[%clk 0:01:23]}  e5 {[%clk 0:00:23]} 21. Qa8+ {[%clk 0:01:21]}  Kf7 {[%clk 0:00:22]} 22. Bxe5 {[%clk 0:01:21]}  c3 {[%clk 0:00:20]} 23. Nb3 {[%clk 0:01:13]}  c2 {[%clk 0:00:20]} 24. Nc1 {[%clk 0:00:36]}  Qd1 {[%clk 0:00:14]} 25. Bb2 {[%clk 0:00:36]}  Bb5 {[%clk 0:00:12]} 26. Qxb7+ {[%clk 0:00:33]}  Be7 {[%clk 0:00:10]} 27. Qxb5 {[%clk 0:00:33]}  Rc8 {[%clk 0:00:09]} 28. Nd4 {[%clk 0:00:29]}  Kg8 {[%clk 0:00:05]} 29. Qxd5+ {[%clk 0:00:29]}  Kh8 {[%clk 0:00:05]} 30. Qd7 {[%clk 0:00:29]} 1-0


[Site "https://www.chess.com"]

[Event "Titled Tuesday Blitz June 28 Early 2022"]
[White "Jaracz, Pawel"]
[Black "Karavade, Eesha"]
[WhiteFideId "1102222"]
[BlackFideId "5012600"]
[WhiteElo "2459"]
[BlackElo "2258"]
[Result "0-1"]
[Round "08"]
[TimeControl "180+1"]
[Date "2022.06.28"]
[WhiteClock "0:00:07"]
[BlackClock "0:00:20"]

1. d4 {[%clk 0:03:00]}  Nf6 {[%clk 0:02:59]} 2. c4 {[%clk 0:03:01]}  e6 {[%clk 0:03:00]} 3. Nc3 {[%clk 0:03:00]}  Bb4 {[%clk 0:02:59]} 4. e3 {[%clk 0:02:58]}  d5 {[%clk 0:02:57]} 5. Qa4+ {[%clk 0:02:53]}  Nc6 {[%clk 0:02:56]} 6. a3 {[%clk 0:02:49]}  Bxc3+ {[%clk 0:02:53]} 7. bxc3 {[%clk 0:02:49]}  O-O {[%clk 0:02:52]} 8. Nf3 {[%clk 0:02:47]}  Bd7 {[%clk 0:02:42]} 9. Qc2 {[%clk 0:02:46]}  dxc4 {[%clk 0:02:42]} 10. Bxc4 {[%clk 0:02:45]}  Na5 {[%clk 0:02:42]} 11. Bd3 {[%clk 0:02:45]}  c5 {[%clk 0:02:43]} 12. O-O {[%clk 0:02:44]}  cxd4 {[%clk 0:02:41]} 13. cxd4 {[%clk 0:02:44]}  Rc8 {[%clk 0:02:41]} 14. Qb2 {[%clk 0:02:37]}  b6 {[%clk 0:02:15]} 15. Ne5 {[%clk 0:02:36]}  Ba4 {[%clk 0:02:06]} 16. Qb4 {[%clk 0:02:25]}  Bc2 {[%clk 0:02:05]} 17. Ba6 {[%clk 0:02:23]}  Rc7 {[%clk 0:02:05]} 18. Ra2 {[%clk 0:02:16]}  Nd5 {[%clk 0:02:01]} 19. Qe1 {[%clk 0:02:03]}  Nb3 {[%clk 0:01:50]} 20. Bd2 {[%clk 0:01:44]}  Nxd2 {[%clk 0:01:30]} 21. Qxd2 {[%clk 0:01:45]}  Ba4 {[%clk 0:01:30]} 22. Rc1 {[%clk 0:01:31]}  Rxc1+ {[%clk 0:01:25]} 23. Qxc1 {[%clk 0:01:31]}  Qc7 {[%clk 0:01:25]} 24. Qxc7 {[%clk 0:01:30]}  Nxc7 {[%clk 0:01:25]} 25. Bd3 {[%clk 0:01:30]}  Rc8 {[%clk 0:01:19]} 26. e4 {[%clk 0:01:18]}  f6 {[%clk 0:01:18]} 27. Nf3 {[%clk 0:01:14]}  Nb5 {[%clk 0:01:16]} 28. Bxb5 {[%clk 0:01:04]}  Bxb5 {[%clk 0:01:16]} 29. g4 {[%clk 0:01:04]}  Rc1+ {[%clk 0:01:12]} 30. Kg2 {[%clk 0:01:05]}  Bf1+ {[%clk 0:01:12]} 31. Kg3 {[%clk 0:01:05]}  Rc3 {[%clk 0:01:09]} 32. h4 {[%clk 0:00:59]}  Kf7 {[%clk 0:00:59]} 33. Kf4 {[%clk 0:00:56]}  Bc4 {[%clk 0:00:52]} 34. Ra1 {[%clk 0:00:54]}  a5 {[%clk 0:00:50]} 35. Rb1 {[%clk 0:00:48]}  b5 {[%clk 0:00:49]} 36. Nd2 {[%clk 0:00:46]}  Rxa3 {[%clk 0:00:49]} 37. Nxc4 {[%clk 0:00:45]}  bxc4 {[%clk 0:00:49]} 38. Rb7+ {[%clk 0:00:46]}  Kf8 {[%clk 0:00:37]} 39. Rc7 {[%clk 0:00:46]}  c3 {[%clk 0:00:36]} 40. d5 {[%clk 0:00:42]}  exd5 {[%clk 0:00:26]} 41. exd5 {[%clk 0:00:43]}  Ra2 {[%clk 0:00:23]} 42. d6 {[%clk 0:00:36]}  Rxf2+ {[%clk 0:00:23]} 43. Ke3 {[%clk 0:00:36]}  Rd2 {[%clk 0:00:23]} 44. d7 {[%clk 0:00:21]}  a4 {[%clk 0:00:23]} 45. Ra7 {[%clk 0:00:14]}  Ke7 {[%clk 0:00:20]} 46. d8=Q+ {[%clk 0:00:13]}  Kxd8 {[%clk 0:00:20]} 47. Rxg7 {[%clk 0:00:13]}  a3 {[%clk 0:00:20]} 48. Ra7 {[%clk 0:00:13]}  a2 {[%clk 0:00:20]} 49. g5 {[%clk 0:00:06]}  fxg5 {[%clk 0:00:20]} 50. hxg5 {[%clk 0:00:07]}  Kc8 {[%clk 0:00:20]} 0-1


[Site "https://www.chess.com"]

[Event "Titled Tuesday Blitz June 28 Early 2022"]
[White "Jia, Haoxiang"]
[Black "Zhigalko, Sergei"]
[WhiteFideId "8602999"]
[BlackFideId "13502956"]
[WhiteElo "2621"]
[BlackElo "2662"]
[Result "0-1"]
[Round "08"]
[TimeControl "180+1"]
[Date "2022.06.28"]
[WhiteClock "0:01:41"]
[BlackClock "0:01:58"]

1. d4 {[%clk 0:03:00]}  Nf6 {[%clk 0:02:58]} 2. c4 {[%clk 0:03:00]}  e6 {[%clk 0:02:58]} 3. Nf3 {[%clk 0:03:01]}  b6 {[%clk 0:02:58]} 4. g3 {[%clk 0:03:01]}  Ba6 {[%clk 0:02:58]} 5. Qc2 {[%clk 0:03:00]}  Bb4+ {[%clk 0:02:58]} 6. Bd2 {[%clk 0:03:00]}  Be7 {[%clk 0:02:58]} 7. Bg2 {[%clk 0:03:00]}  O-O {[%clk 0:02:58]} 8. O-O {[%clk 0:02:58]}  c6 {[%clk 0:02:58]} 9. b3 {[%clk 0:02:49]}  d5 {[%clk 0:02:57]} 10. a4 {[%clk 0:02:44]}  Nbd7 {[%clk 0:02:49]} 11. a5 {[%clk 0:02:44]}  Ne4 {[%clk 0:02:49]} 12. Rc1 {[%clk 0:02:41]}  b5 {[%clk 0:02:31]} 13. cxd5 {[%clk 0:02:18]}  cxd5 {[%clk 0:02:29]} 14. Be1 {[%clk 0:02:12]}  b4 {[%clk 0:02:26]} 15. Ne5 {[%clk 0:01:51]}  Nxe5 {[%clk 0:02:21]} 16. Bxe4 {[%clk 0:01:49]}  dxe4 {[%clk 0:02:14]} 17. dxe5 {[%clk 0:01:49]}  Rc8 {[%clk 0:02:03]} 18. Qb2 {[%clk 0:01:50]}  Rxc1 {[%clk 0:02:03]} 19. Qxc1 {[%clk 0:01:51]}  Bxe2 {[%clk 0:02:03]} 20. Qe3 {[%clk 0:01:48]}  Qd1 {[%clk 0:01:58]} 21. Qd2 {[%clk 0:01:41]}  Rd8 {[%clk 0:01:58]} 0-1


[Site "https://www.chess.com"]

[Event "Titled Tuesday Blitz June 28 Early 2022"]
[White "Jiganchine, Roman"]
[Black "Omariev, Maksim"]
[WhiteFideId "2603667"]
[BlackFideId "4193423"]
[WhiteElo "2295"]
[BlackElo "2479"]
[Result "0-1"]
[Round "08"]
[TimeControl "180+1"]
[Date "2022.06.28"]
[WhiteClock "0:00:01"]
[BlackClock "0:00:22"]

1. Nf3 {[%clk 0:03:00]}  d5 {[%clk 0:02:12]} 2. e3 {[%clk 0:02:59]}  Nf6 {[%clk 0:02:11]} 3. c4 {[%clk 0:02:59]}  c6 {[%clk 0:02:10]} 4. Nc3 {[%clk 0:02:58]}  e6 {[%clk 0:02:10]} 5. b3 {[%clk 0:02:58]}  Be7 {[%clk 0:02:10]} 6. Bb2 {[%clk 0:02:57]}  O-O {[%clk 0:02:11]} 7. d4 {[%clk 0:02:56]}  Nbd7 {[%clk 0:02:10]} 8. Bd3 {[%clk 0:02:56]}  b6 {[%clk 0:02:10]} 9. O-O {[%clk 0:02:55]}  Bb7 {[%clk 0:02:10]} 10. Qe2 {[%clk 0:02:55]}  c5 {[%clk 0:02:11]} 11. Rad1 {[%clk 0:02:42]}  cxd4 {[%clk 0:02:10]} 12. exd4 {[%clk 0:02:42]}  Rc8 {[%clk 0:02:09]} 13. Rfe1 {[%clk 0:02:41]}  Qc7 {[%clk 0:02:08]} 14. Ne5 {[%clk 0:02:22]}  Rfd8 {[%clk 0:02:05]} 15. cxd5 {[%clk 0:02:13]}  Nxe5 {[%clk 0:01:56]} 16. dxe5 {[%clk 0:01:56]}  Nxd5 {[%clk 0:01:56]} 17. Nxd5 {[%clk 0:01:05]}  Rxd5 {[%clk 0:01:46]} 18. h3 {[%clk 0:00:46]}  Rcd8 {[%clk 0:01:46]} 19. Bc4 {[%clk 0:00:41]}  R5d7 {[%clk 0:01:39]} 20. Rxd7 {[%clk 0:00:30]}  Qxd7 {[%clk 0:01:40]} 21. Qg4 {[%clk 0:00:31]}  g6 {[%clk 0:01:28]} 22. Bc1 {[%clk 0:00:30]}  h5 {[%clk 0:01:26]} 23. Qg3 {[%clk 0:00:29]}  b5 {[%clk 0:01:19]} 24. Bf1 {[%clk 0:00:29]}  a6 {[%clk 0:01:14]} 25. Bg5 {[%clk 0:00:28]}  Rc8 {[%clk 0:01:09]} 26. Bxe7 {[%clk 0:00:25]}  Qxe7 {[%clk 0:01:10]} 27. Qd3 {[%clk 0:00:23]}  Rc5 {[%clk 0:01:09]} 28. Qe3 {[%clk 0:00:19]}  Qc7 {[%clk 0:01:07]} 29. Qf4 {[%clk 0:00:18]}  Rc2 {[%clk 0:00:57]} 30. Qf6 {[%clk 0:00:18]}  Rxa2 {[%clk 0:00:47]} 31. Rd1 {[%clk 0:00:18]}  Bd5 {[%clk 0:00:48]} 32. Rxd5 {[%clk 0:00:13]}  exd5 {[%clk 0:00:47]} 33. e6 {[%clk 0:00:13]}  Rc2 {[%clk 0:00:31]} 34. e7 {[%clk 0:00:12]}  Qd7 {[%clk 0:00:27]} 35. Bd3 {[%clk 0:00:12]}  Rc1+ {[%clk 0:00:22]} 36. Kh2 {[%clk 0:00:12]}  Rc6 {[%clk 0:00:23]} 37. Qg5 {[%clk 0:00:10]}  Re6 {[%clk 0:00:22]} 38. Bf5 {[%clk 0:00:09]}  Qd6+ {[%clk 0:00:23]} 39. g3 {[%clk 0:00:09]}  Rxe7 {[%clk 0:00:22]} 40. Bd3 {[%clk 0:00:07]}  Kg7 {[%clk 0:00:21]} 41. Qd2 {[%clk 0:00:06]}  d4 {[%clk 0:00:21]} 42. Qg5 {[%clk 0:00:06]}  Qe5 {[%clk 0:00:21]} 43. Qd2 {[%clk 0:00:05]}  Qf6 {[%clk 0:00:21]} 44. f4 {[%clk 0:00:04]}  Re3 {[%clk 0:00:20]} 45. Bf1 {[%clk 0:00:03]}  h4 {[%clk 0:00:20]} 46. Bg2 {[%clk 0:00:02]}  hxg3+ {[%clk 0:00:20]} 47. Kg1 {[%clk 0:00:02]}  Qxf4 {[%clk 0:00:21]} 48. Qd1 {[%clk 0:00:01]}  Qf2+ {[%clk 0:00:21]} 49. Kh1 {[%clk 0:00:01]}  Re1+ {[%clk 0:00:22]} 0-1


[Site "https://www.chess.com"]